[Event "SVK-ch Open 2018"]
[Site "Banska Stiavnica"]
[Date "2018.07.14"]
[Round "8"]
[White "Volcko, Richard"]
[Black "Bochnicka, Vladimir"]
[Result "0-1"]
[ECO "B32"]
[WhiteElo "2068"]
[BlackElo "1974"]
[Annotator "NA"]
[PlyCount "56"]
[EventDate "2018.07.07"]
[EventType "swiss"]
[EventCountry "SVK"]
[SourceTitle "playchess.com"]
[Source "ChessBase"]
[SourceQuality "1"]
[TimeControl "40/5400+30:1800+30"]

1. e4 {[%emt 0:00:00]} c5 {[%emt 0:00:00]} 2. Nf3 {[%emt 0:00:00]} Nc6 {[%emt 0:00:00]} 3. d4 {[%emt 0:00:00]} cxd4 {[%emt 0:00:00]} 4. Nxd4 {[%emt 0:00:00]} Nf6 $11 {[%emt 0:00:00] LiveBook: 28336 Games} 5. Nc3 {[%emt 0:00:00]} e5 {[%emt 0:00:08]} 6. Ndb5 {[%emt 0:00:00]} d6 {[%emt 0:00:07]} 7. Nd5 {[%emt 0:00:15]} Nxd5 {[%emt 0:01:22]} 8. exd5 {[%emt 0:00:18]} Nb8 {[%emt 0:04:47]} 9. c4 {[%emt 0:00:20]} a6 {[%emt 0:01:32]} 10. Nc3 {[%emt 0:00:55]} Be7 {[%emt 0:01:53]} 11. Be2 {[%emt 0:00:09]} O-O {[%emt 0:02:58]} 12. O-O {[%emt 0:00:50]} Nd7 {[%emt 0:02:13]} 13. Qc2 {[%emt 0:03:42]} f5 {[%emt 0:08:21]} 14. f4 {[%emt 0:00:35]} exf4 {[%emt 0:14:30]} 15. Bxf4 {[%emt 0:00:49]} g5 {[%emt 0:00:18]} 16. Be3 {[%emt 0:08:27]} Ne5 {[%emt 0:02:24]} 17. Rad1 {[%emt 0:09:36]} f4 {[%emt 0:14:10]} 18. Bd4 {[%emt 0:00:38]} g4 {[%emt 0:01:54]} 19. Bxe5 {[%emt 0:14:46]} dxe5 {[%emt 0:00:01]} 20. Bd3 {[%emt 0:02:12]} Bc5+ {[%emt 0:01:03]} 21. Kh1 {[%emt 0:02:21]} g3 {[%emt 0:06:55]} 22. Bxh7+ {[%emt 0:25:29]} Kh8 {[%emt 0:00:08]} 23. hxg3 {[%emt 0:04:04]} Rf6 {[%emt 0:01:33]} 24. Bg6 {[%emt 0:01:42]} Qf8 {[%emt 0:00:29]} 25. Qe2 {[%emt 0:01:35]} Rxg6 {[%emt 0:03:06]} 26. Qxe5+ {[%emt 0:00:12]} Qg7 {[%emt 0:00:34]} 27. Qe8+ {[%emt 0:04:08]} Kh7 {[%emt 0:00:09]} 28. Rxf4 {[%emt 0:00:27]} Bg4 {[%emt 0:00:29]} 0-1

[Event "SVK-ch Open 2018"]
[Site "Banska Stiavnica"]
[Date "2018.07.14"]
[Round "8"]
[White "Tepper, Frantisek"]
[Black "Kuna, Martin"]
[Result "1/2-1/2"]
[ECO "B52"]
[WhiteElo "2050"]
[BlackElo "1947"]
[Annotator "NA"]
[PlyCount "33"]
[EventDate "2018.07.07"]
[EventType "swiss"]
[EventCountry "SVK"]
[SourceTitle "playchess.com"]
[Source "ChessBase"]
[SourceQuality "1"]
[TimeControl "40/5400+30:1800+30"]

1. e4 {[%emt 0:00:00]} c5 {[%emt 0:00:00]} 2. Nf3 {[%emt 0:00:06]} d6 {[%emt 0:00:12]} 3. Bb5+ {[%emt 0:00:39]} Bd7 {[%emt 0:00:09]} 4. Bxd7+ {[%emt 0:00:05]} Qxd7 {[%emt 0:00:07]} 5. O-O {[%emt 0:00:07]} Nf6 {[%emt 0:04:52]} 6. Re1 {[%emt 0:02:54]} e6 {[%emt 0:00:45]} 7. c3 {[%emt 0:02:40]} Be7 {[%emt 0:01:34]} 8. d3 {[%emt 0:03:03]} O-O {[%emt 0:01:32]} 9. Nbd2 {[%emt 0:00:05]} Nc6 {[%emt 0:06:45]} 10. Nf1 {[%emt 0:01:02]} d5 {[%emt 0:07:15]} 11. e5 {[%emt 0:01:51]} Ne8 {[%emt 0:00:22]} 12. d4 {[%emt 0:00:55]} cxd4 {[%emt 0:00:10]} 13. cxd4 {[%emt 0:00:02]} f6 {[%emt 0:00:35]} 14. Bf4 {[%emt 0:09:09]} fxe5 {[%emt 0:03:09]} 15. Nxe5 {[%emt 0:01:54]} Nxe5 {[%emt 0:00:56]} 16. Bxe5 {[%emt 0:00:01]} Bf6 {[%emt 0:03:32]} 17. Rc1 {[%emt 0:02:52]} 1/2-1/2

[Event "SVK-ch Open 2018"]
[Site "Banska Stiavnica"]
[Date "2018.07.14"]
[Round "8"]
[White "Panko, Radoslav"]
[Black "Istok, Vojtech"]
[Result "0-1"]
[ECO "A45"]
[WhiteElo "2049"]
[BlackElo "1971"]
[Annotator "NA"]
[PlyCount "84"]
[EventDate "2018.07.07"]
[EventType "swiss"]
[EventCountry "SVK"]
[SourceTitle "playchess.com"]
[Source "ChessBase"]
[SourceQuality "1"]
[TimeControl "40/5400+30:1800+30"]

1. d4 {[%emt 0:00:00]} Nf6 {[%emt 0:00:00]} 2. Bg5 {[%emt 0:00:00]} Ne4 {[%emt 0:00:10]} 3. Bf4 {[%emt 0:00:00]} d5 {[%emt 0:00:15]} 4. f3 {[%emt 0:00:02]} Nf6 {[%emt 0:01:28]} 5. e4 {[%emt 0:00:42]} dxe4 {[%emt 0:00:22]} 6. Nc3 {[%emt 0:00:06]} exf3 {[%emt 0:01:54]} 7. Nxf3 {[%emt 0:00:06]} Bf5 {[%emt 0:02:51]} 8. Bc4 {[%emt 0:18:44]} e6 {[%emt 0:02:12]} 9. O-O {[%emt 0:15:57]} c6 {[%emt 0:03:12]} 10. Ne5 {[%emt 0:06:51]} Be7 {[%emt 0:03:44]} 11. g4 {[%emt 0:00:39]} Bg6 {[%emt 0:20:43]} 12. h4 Nxg4 {[%emt 0:04:55]} 13. Nxg4 {[%emt 0:08:44]} Bxh4 {[%emt 0:00:57]} 14. Ne5 {[%emt 0:02:09]} Nd7 {[%emt 0:07:03]} 15. Nxg6 {[%emt 0:08:05]} hxg6 {[%emt 0:00:10]} 16. Ne4 {[%emt 0:00:05]} Be7 {[%emt 0:05:47]} 17. c3 {[%emt 0:02:24]} Nb6 {[%emt 0:01:35]} 18. Bb3 {[%emt 0:02:32]} Nd5 {[%emt 0:05:28]} 19. Qf3 {[%emt 0:01:38]} Qd7 {[%emt 0:03:26]} 20. Bg3 {[%emt 0:01:10]} f5 {[%emt 0:07:59]} 21. Nf2 {[%emt 0:03:59]} O-O-O {[%emt 0:02:50]} 22. Nd3 {[%emt 0:04:49]} g5 {[%emt 0:00:26]} 23. Ne5 {[%emt 0:00:37]} Qe8 {[%emt 0:00:03]} 24. Bxd5 {[%emt 0:01:59]} Rxd5 {[%emt 0:00:43]} 25. Kg2 {[%emt 0:02:26]} g4 {[%emt 0:01:19]} 26. Qd3 {[%emt 0:00:24]} Rh3 {[%emt 0:01:13]} 27. Rxf5 {[%emt 0:08:13]} Bh4 {[%emt 0:08:51]} 28. Raf1 {[%emt 0:07:29]} Rd8 {[%emt 0:00:03]} 29. Rf7 {[%emt 0:03:26]} Rxg3+ {[%emt 0:01:41]} 30. Qxg3 {[%emt 0:00:04]} Bxg3 {[%emt 0:00:03]} 31. Kxg3 {[%emt 0:00:03]} Qh8 {[%emt 0:04:15]} 32. Nxg4 {[%emt 0:01:56]} g5 {[%emt 0:01:20]} 33. Ne5 {[%emt 0:00:32]} Qh4+ {[%emt 0:00:05]} 34. Kg2 {[%emt 0:00:02]} Qe4+ {[%emt 0:00:39]} 35. Kg3 {[%emt 0:00:24]} Qh4+ {[%emt 0:01:10]} 36. Kg2 {[%emt 0:00:03]} c5 {[%emt 0:03:29]} 37. Re7 {[%emt 0:01:29]} Rh8 {[%emt 0:02:08]} 38. Rff7 {[%emt 0:00:28]} Qh1+ {[%emt 0:01:22]} 39. Kf2 {[%emt 0:00:09]} Rh2+ {[%emt 0:01:00]} 40. Ke3 {[%emt 0:00:47]} Qe1+ {[%emt 0:00:55]} 41. Kf3 {[%emt 0:05:55]} Qe2+ {[%emt 0:00:00]} 42. Kg3 {[%emt 0:00:32]} Qg2# {[%emt 0:00:11]} 0-1

[Event "SVK-ch Open 2018"]
[Site "Banska Stiavnica"]
[Date "2018.07.14"]
[Round "8"]
[White "Bednar, Jan"]
[Black "Marsina, Stefan"]
[Result "0-1"]
[ECO "C06"]
[WhiteElo "2010"]
[BlackElo "1907"]
[Annotator "NA"]
[PlyCount "86"]
[EventDate "2018.07.07"]
[EventType "swiss"]
[EventCountry "SVK"]
[SourceTitle "playchess.com"]
[Source "ChessBase"]
[SourceQuality "1"]
[TimeControl "40/5400+30:1800+30"]

1. e4 {[%emt 0:00:00]} e6 {[%emt 0:02:57]} 2. d4 {[%emt 0:00:00]} d5 {[%emt 0:00:04]} 3. Nd2 {[%emt 0:00:03]} Nf6 {[%emt 0:00:30]} 4. e5 {[%emt 0:00:16]} Nfd7 {[%emt 0:00:04]} 5. Bd3 {[%emt 0:00:15]} c5 {[%emt 0:01:01]} 6. c3 {[%emt 0:00:05]} Nc6 {[%emt 0:00:07]} 7. Ndf3 {[%emt 0:00:18]} f6 {[%emt 0:18:12]} 8. exf6 {[%emt 0:00:41]} Nxf6 {[%emt 0:00:37]} 9. Ne2 {[%emt 0:00:14]} cxd4 {[%emt 0:00:22]} 10. cxd4 {[%emt 0:00:07]} Bd6 {[%emt 0:00:07]} 11. O-O {[%emt 0:00:23]} O-O {[%emt 0:00:04]} 12. Bg5 {[%emt 0:04:10]} Qc7 {[%emt 0:04:02]} 13. Nc3 {[%emt 0:01:17]} Qf7 {[%emt 0:02:36]} 14. Bh4 {[%emt 0:05:45]} Qh5 {[%emt 0:06:44]} 15. Nb5 {[%emt 0:04:10]} Bb8 {[%emt 0:01:22]} 16. Bg3 {[%emt 0:00:30]} Bxg3 {[%emt 0:00:30]} 17. fxg3 {[%emt 0:00:15]} Ng4 {[%emt 0:05:50]} 18. Nh4 {[%emt 0:02:58]} Rxf1+ {[%emt 0:15:09]} 19. Bxf1 {[%emt 0:05:53]} Qg5 {[%emt 0:01:54]} 20. Qc1 {[%emt 0:03:02]} Qe7 {[%emt 0:09:50]} 21. Qd2 {[%emt 0:12:36]} e5 {[%emt 0:06:22]} 22. h3 {[%emt 0:00:37]} Nf6 {[%emt 0:01:02]} 23. Nf3 {[%emt 0:27:56]} e4 {[%emt 0:07:02]} 24. Re1 {[%emt 0:00:58]} a6 {[%emt 0:01:00]} 25. Nc3 {[%emt 0:00:20]} Qc7 {[%emt 0:03:35]} 26. Ng5 {[%emt 0:10:06]} b5 {[%emt 0:05:33]} 27. Rc1 {[%emt 0:05:21]} Qxg3 28. Nxd5 {[%emt 0:03:59]} Nxd5 {[%emt 0:04:19]} 29. Rxc6 {[%emt 0:00:08]} e3 {[%emt 0:00:13]} 30. Qc2 {[%emt 0:00:38]} Bd7 {[%emt 0:01:56]} 31. Qxh7+ {[%emt 0:00:19]} Kf8 {[%emt 0:00:17]} 32. Qh8+ {[%emt 0:00:20]} Ke7 {[%emt 0:00:07]} 33. Qxg7+ {[%emt 0:00:06]} Kd8 {[%emt 0:01:08]} 34. Qf8+ {[%emt 0:00:52]} Be8 {[%emt 0:00:02]} 35. Ne6+ {[%emt 0:00:11]} Kd7 {[%emt 0:00:01]} 36. Rc2 {[%emt 0:04:27]} Kxe6 {[%emt 0:00:12]} 37. Bd3 {[%emt 0:00:43]} Qf4 {[%emt 0:00:47]} 38. Qg8+ {[%emt 0:02:56]} Kd6 39. Qh8 Qf6 {[%emt 0:00:30]} 40. Qh7 {[%emt 0:02:11]} Bf7 {[%emt 0:00:23]} 41. Qe4 {[%emt 0:31:51]} Re8 {[%emt 0:31:18]} 42. Qg4 {[%emt 0:00:24]} Rg8 {[%emt 0:00:31]} 43. Qe4 {[%emt 0:03:01]} Bg6 {[%emt 0:00:24]} 0-1

[Event "SVK-ch Open 2018"]
[Site "Banska Stiavnica"]
[Date "2018.07.14"]
[Round "8"]
[White "Bakalar, Jan"]
[Black "Gzib, David"]
[Result "1/2-1/2"]
[ECO "A00"]
[WhiteElo "1998"]
[BlackElo "1939"]
[Annotator "NA"]
[PlyCount "105"]
[EventDate "2018.07.07"]
[EventType "swiss"]
[EventCountry "SVK"]
[SourceTitle "playchess.com"]
[Source "ChessBase"]
[SourceQuality "1"]
[TimeControl "40/5400+30:1800+30"]

1. g3 {[%emt 0:00:00]} g6 {[%emt 0:11:10]} 2. Bg2 {[%emt 0:01:11]} Bg7 {[%emt 0:00:11]} 3. c4 {[%emt 0:00:37]} Nf6 {[%emt 0:00:20]} 4. Nc3 {[%emt 0:00:09]} O-O {[%emt 0:00:11]} 5. e3 {[%emt 0:04:55]} c6 {[%emt 0:04:24]} 6. d4 {[%emt 0:04:15]} d6 {[%emt 0:00:40]} 7. Nge2 {[%emt 0:00:37]} Qc7 {[%emt 0:03:22]} 8. O-O {[%emt 0:01:56]} e5 {[%emt 0:01:51]} 9. b3 {[%emt 0:00:46]} Nbd7 {[%emt 0:02:29]} 10. a4 {[%emt 0:01:38]} a6 {[%emt 0:02:58]} 11. Ba3 {[%emt 0:07:57]} Rd8 {[%emt 0:02:31]} 12. dxe5 {[%emt 0:07:08]} Nxe5 {[%emt 0:01:10]} 13. h3 {[%emt 0:00:31]} d5 {[%emt 0:10:26]} 14. cxd5 {[%emt 0:02:31]} Nxd5 {[%emt 0:03:35]} 15. Nxd5 {[%emt 0:00:39]} cxd5 {[%emt 0:00:10]} 16. Rc1 {[%emt 0:00:52]} Qb8 {[%emt 0:11:04]} 17. Nd4 {[%emt 0:04:54]} Bd7 {[%emt 0:04:47]} 18. Qd2 {[%emt 0:04:54]} Nc6 {[%emt 0:07:50]} 19. Bb2 {[%emt 0:01:20]} Qd6 {[%emt 0:13:44]} 20. Rfd1 {[%emt 0:03:47]} Nxd4 {[%emt 0:03:02]} 21. Bxd4 {[%emt 0:00:13]} Bc6 {[%emt 0:01:14]} 22. Bxg7 {[%emt 0:01:55]} Kxg7 {[%emt 0:00:08]} 23. Qd4+ {[%emt 0:06:16]} Qf6 {[%emt 0:00:16]} 24. Rc5 {[%emt 0:00:56]} Rd6 {[%emt 0:05:54]} 25. Bxd5 {[%emt 0:07:53]} Rad8 {[%emt 0:01:26]} 26. Qxf6+ {[%emt 0:00:54]} Kxf6 {[%emt 0:00:08]} 27. e4 {[%emt 0:00:15]} b6 {[%emt 0:05:04]} 28. Rc3 {[%emt 0:06:19]} Bxd5 {[%emt 0:01:03]} 29. exd5 {[%emt 0:00:16]} Ke5 {[%emt 0:00:59]} 30. Re3+ {[%emt 0:08:55]} Kf6 {[%emt 0:00:11]} 31. Rf3+ {[%emt 0:01:13]} Kg7 {[%emt 0:02:13]} 32. Rc3 {[%emt 0:02:15]} Kf6 {[%emt 0:00:30]} 33. f4 {[%emt 0:00:34]} Kf5 {[%emt 0:00:32]} 34. Rcd3 {[%emt 0:03:53]} g5 {[%emt 0:00:39]} 35. fxg5 {[%emt 0:01:17]} Kxg5 {[%emt 0:00:07]} 36. Rd4 {[%emt 0:01:09]} f5 {[%emt 0:00:43]} 37. Kf2 {[%emt 0:00:35]} Kf6 {[%emt 0:00:28]} 38. R4d3 {[%emt 0:01:43]} Ke5 {[%emt 0:00:23]} 39. Re3+ {[%emt 0:01:42]} Kf6 {[%emt 0:00:42]} 40. Rde1 {[%emt 0:00:24]} Rxd5 {[%emt 0:00:47]} 41. Re6+ {[%emt 0:30:35]} Kg5 {[%emt 0:05:25]} 42. Rxb6 {[%emt 0:00:00]} Rd3 {[%emt 0:01:28]} 43. Re3 {[%emt 0:00:00]} Rd1 {[%emt 0:06:51]} 44. h4+ {[%emt 0:00:00]} Kh5 {[%emt 0:06:19]} 45. Rxa6 {[%emt 0:00:00]} Kg4 {[%emt 0:03:56]} 46. Rb6 {[%emt 0:00:00]} R8d2+ {[%emt 0:05:48]} 47. Re2 {[%emt 0:00:00]} Rd3 {[%emt 0:00:06]} 48. Rb4+ {[%emt 0:00:00]} Kh3 {[%emt 0:00:45]} 49. Rf4 {[%emt 0:02:46]} Rxb3 {[%emt 0:02:16]} 50. Rxf5 {[%emt 0:00:28]} Rxg3 {[%emt 0:00:56]} 51. Rf3 {[%emt 0:02:45]} Rxf3+ {[%emt 0:00:34]} 52. Kxf3 {[%emt 0:00:07]} Rf1+ {[%emt 0:01:09]} 53. Ke3 {[%emt 0:03:45]} 1/2-1/2

[Event "SVK-ch Open 2018"]
[Site "Banska Stiavnica"]
[Date "2018.07.14"]
[Round "8"]
[White "Chrenko, Kristian"]
[Black "Kucera, Michal"]
[Result "1-0"]
[ECO "B33"]
[WhiteElo "1992"]
[BlackElo "1921"]
[Annotator "NA"]
[PlyCount "71"]
[EventDate "2018.07.07"]
[EventType "swiss"]
[EventCountry "SVK"]
[SourceTitle "playchess.com"]
[Source "ChessBase"]
[SourceQuality "1"]
[TimeControl "40/5400+30:1800+30"]

1. e4 {[%emt 0:00:00]} c5 {[%emt 0:00:21]} 2. Nf3 {[%emt 0:00:00]} Nc6 {[%emt 0:00:22]} 3. d4 {[%emt 0:00:00]} cxd4 {[%emt 0:00:06]} 4. Nxd4 {[%emt 0:00:00]} Nf6 {[%emt 0:00:09]} 5. Nc3 {[%emt 0:00:00]} e5 {[%emt 0:00:04]} 6. Ndb5 {[%emt 0:00:05]} d6 {[%emt 0:00:11]} 7. Bg5 {[%emt 0:00:06]} a6 {[%emt 0:00:08]} 8. Na3 {[%emt 0:00:07]} b5 {[%emt 0:00:07]} 9. Nd5 {[%emt 0:00:04]} Be7 {[%emt 0:00:09]} 10. Bxf6 {[%emt 0:00:05]} Bxf6 {[%emt 0:00:02]} 11. c4 {[%emt 0:00:18]} b4 {[%emt 0:07:42]} 12. Nc2 {[%emt 0:00:08]} Rb8 {[%emt 0:00:57]} 13. b3 {[%emt 0:01:02]} O-O {[%emt 0:02:19]} 14. g3 {[%emt 0:02:04]} Bg5 {[%emt 0:08:59]} 15. Bg2 {[%emt 0:02:05]} Be6 {[%emt 0:04:35]} 16. Nce3 {[%emt 0:05:52]} g6 {[%emt 0:13:51]} 17. O-O {[%emt 0:04:18]} Bxe3 {[%emt 0:13:42]} 18. Nxe3 {[%emt 0:04:37]} Nd4 {[%emt 0:02:35]} 19. Nc2 {[%emt 0:01:46]} Nxc2 {[%emt 0:01:00]} 20. Qxc2 {[%emt 0:00:04]} Qb6 {[%emt 0:00:15]} 21. Rad1 {[%emt 0:04:59]} Rfd8 {[%emt 0:03:01]} 22. Rd3 {[%emt 0:02:59]} Qc5 {[%emt 0:02:48]} 23. Qd2 {[%emt 0:02:58]} Rb6 {[%emt 0:02:20]} 24. Qg5 {[%emt 0:02:56]} Rd7 {[%emt 0:07:34]} 25. Rfd1 {[%emt 0:04:03]} Kg7 {[%emt 0:01:05]} 26. Rf3 {[%emt 0:03:02]} Qc7 {[%emt 0:01:23]} 27. Qf6+ {[%emt 0:01:12]} Kg8 {[%emt 0:00:08]} 28. Rfd3 {[%emt 0:01:38]} Rc6 {[%emt 0:07:13]} 29. f4 {[%emt 0:04:15]} exf4 {[%emt 0:03:52]} 30. gxf4 {[%emt 0:01:07]} d5 {[%emt 0:10:06]} 31. exd5 {[%emt 0:04:53]} Bxd5 {[%emt 0:00:11]} 32. Qe5 {[%emt 0:00:15]} Qb6+ {[%emt 0:03:54]} 33. Qd4 {[%emt 0:00:51]} Bxg2 {[%emt 0:03:13]} 34. Qxb6 {[%emt 0:00:15]} Rxb6 {[%emt 0:00:25]} 35. Rxd7 {[%emt 0:00:10]} Bh3 {[%emt 0:00:17]} 36. R1d6 {[%emt 0:00:30]} 1-0

[Event "SVK-ch Open 2018"]
[Site "Banska Stiavnica"]
[Date "2018.07.14"]
[Round "8"]
[White "Gyerpal, Adrian"]
[Black "Bango, Dominik"]
[Result "1/2-1/2"]
[ECO "E10"]
[WhiteElo "1990"]
[BlackElo "1835"]
[Annotator "NA"]
[PlyCount "39"]
[EventDate "2018.07.07"]
[EventType "swiss"]
[EventCountry "SVK"]
[SourceTitle "playchess.com"]
[Source "ChessBase"]
[SourceQuality "1"]
[TimeControl "40/5400+30:1800+30"]

1. d4 {[%emt 0:00:00]} Nf6 {[%emt 0:00:02]} 2. c4 {[%emt 0:00:00]} e6 {[%emt 0:00:10]} 3. Nf3 {[%emt 0:00:21]} c5 {[%emt 0:00:28]} 4. d5 {[%emt 0:00:55]} b5 {[%emt 0:00:11]} 5. dxe6 {[%emt 0:08:40]} fxe6 {[%emt 0:00:47]} 6. cxb5 {[%emt 0:00:29]} d5 {[%emt 0:00:14]} 7. e3 {[%emt 0:01:39]} Bd6 {[%emt 0:00:51]} 8. Nc3 {[%emt 0:02:05]} O-O {[%emt 0:01:09]} 9. Be2 {[%emt 0:01:42]} Bb7 {[%emt 0:01:03]} 10. O-O {[%emt 0:06:43]} Nbd7 {[%emt 0:08:29]} 11. Ng5 {[%emt 0:12:18]} Qe7 {[%emt 0:02:12]} 12. f4 {[%emt 0:08:29]} h6 {[%emt 0:01:47]} 13. Nf3 {[%emt 0:00:24]} e5 {[%emt 0:00:33]} 14. fxe5 {[%emt 0:04:49]} Nxe5 {[%emt 0:02:37]} 15. e4 {[%emt 0:10:22]} d4 {[%emt 0:04:28]} 16. Nxe5 {[%emt 0:04:22]} Bxe5 {[%emt 0:01:58]} 17. Bc4+ {[%emt 0:01:29]} Kh8 {[%emt 0:00:32]} 18. Nd5 {[%emt 0:00:45]} Nxd5 {[%emt 0:00:35]} 19. exd5 {[%emt 0:03:27]} Qh4 {[%emt 0:04:34]} 20. g3 {[%emt 0:05:10]} 1/2-1/2

[Event "SVK-ch Open 2018"]
[Site "Banska Stiavnica"]
[Date "2018.07.14"]
[Round "8"]
[White "Mandak, Miroslav"]
[Black "Gelle, Istvan"]
[Result "0-1"]
[ECO "A00"]
[WhiteElo "1989"]
[BlackElo "2344"]
[Annotator "NA"]
[PlyCount "128"]
[EventDate "2018.07.07"]
[EventType "swiss"]
[EventCountry "SVK"]
[SourceTitle "playchess.com"]
[Source "ChessBase"]
[SourceQuality "1"]
[TimeControl "40/5400+30:1800+30"]

1. g3 {[%emt 0:00:00]} d5 {[%emt 0:00:00]} 2. Bg2 {[%emt 0:00:00]} c6 {[%emt 0:00:00]} 3. b3 {[%emt 0:00:13]} Bf5 {[%emt 0:00:00] A00: Unregelmäßige Eröffnungen} 4. Bb2 {[%emt 0:00:11]} e6 {[%emt 0:00:00]} 5. d3 {[%emt 0:00:57]} (5. Nf3 h6 6. O-O Nf6 7. c4 Nbd7 8. d3 Bh7 9. Nbd2 Bd6 10. a3 a5 11. Bc3 O-O 12. b4 e5 13. cxd5 axb4 14. Bxb4 Bxb4 15. axb4 cxd5 16. Rxa8 Qxa8 17. Qb3 Rc8 {1-0 (39) Karjakin,S (2782)-Aronian,L (2764) Stavanger 2018}) 5... Nf6 {[%emt 0:00:24] LiveBook: 7 Games} 6. Nd2 {[%emt 0:01:12]} h6 {[%emt 0:00:33]} 7. e3 {[%emt 0:00:27]} Be7 {[%emt 0:00:52]} 8. Ne2 {[%emt 0:00:23]} a5 $146 {[%emt 0:00:55]} ({Vorgänger:} 8... O-O 9. h3 a5 10. a3 a4 11. b4 {1-0 (31) Blatny,P (2460)-Kotan,L (2325) Czechia 2005}) 9. O-O {[%emt 0:00:26]} a4 {[%emt 0:01:35]} 10. h3 {[%emt 0:14:05]} O-O {[%emt 0:00:32]} 11. Kh2 {[%emt 0:02:42]} Bh7 {[%emt 0:00:54]} 12. e4 {[%emt 0:03:04]} b5 {[%emt 0:04:01]} 13. a3 {[%emt 0:04:47]} axb3 {[%emt 0:01:11]} 14. cxb3 {[%emt 0:00:39]} Nbd7 {[%emt 0:06:22]} 15. Nd4 {[%emt 0:06:28]} Qb6 {[%emt 0:00:57]} 16. Nc2 {[%emt 0:01:54]} Qb7 {[%emt 0:12:07]} 17. Qe2 {[%emt 0:03:16]} Nc5 {[%emt 0:06:18]} 18. Nb4 {[%emt 0:04:52]} Rfe8 {[%emt 0:06:08]} 19. Rfc1 {[%emt 0:07:12]} Rac8 {[%emt 0:03:34]} 20. Rd1 {[%emt 0:08:38]} Nfd7 {[%emt 0:06:05]} 21. Rac1 {[%emt 0:02:47]} Bf8 {[%emt 0:02:13]} 22. f4 {[%emt 0:07:35]} Nb6 {[%emt 0:06:05]} 23. Kh1 {[%emt 0:03:16]} Ncd7 {[%emt 0:01:19]} 24. Nc2 {[%emt 0:02:50]} Ra8 {[%emt 0:01:43]} 25. Qf2 {[%emt 0:04:55]} Nc8 {[%emt 0:05:48]} 26. Ne3 {[%emt 0:03:19]} Bxa3 {[%emt 0:01:37]} 27. Bxa3 {[%emt 0:00:43]} Rxa3 {[%emt 0:00:07]} 28. f5 {[%emt 0:01:02]} Ra2 {[%emt 0:10:56]} 29. g4 {[%emt 0:06:27]} Ne5 {[%emt 0:03:40]} 30. Qf1 {[%emt 0:01:01]} d4 {[%emt 0:10:02]} 31. Nc2 {[%emt 0:00:25]} Qd7 {[%emt 0:02:40]} 32. Nf3 {[%emt 0:01:43]} exf5 {[%emt 0:02:31]} 33. Nxe5 {[%emt 0:01:32]} Rxe5 {[%emt 0:00:23]} 34. exf5 {[%emt 0:00:29]} Qd6 {[%emt 0:02:37]} 35. Re1 {[%emt 0:02:34]} f6 {[%emt 0:00:32]} 36. Rxe5 {[%emt 0:02:17]} fxe5 {[%emt 0:00:12]} 37. Qe1 {[%emt 0:01:58]} Ne7 {[%emt 0:00:23]} 38. Nb4 {[%emt 0:00:41]} Rxg2 {[%emt 0:01:29]} 39. Kxg2 {[%emt 0:00:20]} g6 {[%emt 0:00:48]} 40. f6 {[%emt 0:01:33]} Qxf6 {[%emt 0:01:39]} 41. Qf2 {[%emt 0:06:10]} Kg7 {[%emt 0:06:07]} 42. Qxf6+ {[%emt 0:02:07]} Kxf6 {[%emt 0:00:09]} 43. Nxc6 {[%emt 0:01:37]} Nd5 {[%emt 0:00:16]} 44. g5+ {[%emt 0:09:52]} hxg5 {[%emt 0:01:54]} 45. Kf3 {[%emt 0:02:22]} Bg8 {[%emt 0:14:21]} 46. Nb8 {[%emt 0:05:42]} Be6 {[%emt 0:04:26]} 47. Kg3 {[%emt 0:01:44]} Nc3 $2 {[%emt 0:01:33]} (47... Nb4 $19 {has better winning chances.} 48. Rd1 Ke7) 48. Rf1+ {[%emt 0:02:02]} Ke7 {[%emt 0:00:20]} 49. b4 $19 {[%emt 0:00:59]} (49. Ra1 $17 {was worth a try.}) 49... Ne2+ {[%emt 0:01:24]} 50. Kf3 {[%emt 0:01:11]} Nf4 {[%emt 0:00:16]} 51. Na6 {[%emt 0:01:41]} Nxd3 {[%emt 0:02:06]} 52. Nc5 {[%emt 0:00:57]} Bf5 {[%emt 0:00:55]} 53. Nxd3 {[%emt 0:00:29]} Bxd3 {[%emt 0:00:38]} 54. Ra1 {[%emt 0:00:23]} e4+ {[%emt 0:00:29]} 55. Kg4 {[%emt 0:00:32]} e3 {[%emt 0:00:21]} 56. Kxg5 {[%emt 0:00:34]} e2 {[%emt 0:00:59]} 57. Kf4 {[%emt 0:00:23]} Bf5 {[%emt 0:01:18]} 58. h4 Ke6 {[%emt 0:00:38]} 59. Kf3 {[%emt 0:00:58]} d3 {[%emt 0:00:39]} 60. Ke3 {[%emt 0:00:34]} Ke5 {[%emt 0:00:47]} 61. Kd2 {[%emt 0:00:22]} Kf4 {[%emt 0:00:35]} 62. Rg1 {[%emt 0:00:52]} Kf3 {[%emt 0:00:25]} 63. Ke1 {[%emt 0:00:33]} Be4 {[%emt 0:00:37]} 64. Rh1 {[%emt 0:00:32]} Ke3 {[%emt 0:00:38]} 0-1